bitfinex/quotes_BTCUSD_20250123
["timestamp","ask_amount","ask_price","bid_price","bid_amount"]
[1737642309361,0.0001424,102360.0,102350.0,0.33308722]
[1737642309580,0.0001424,102360.0,102350.0,0.34576722]
[1737642309788,0.0001424,102360.0,102350.0,0.34457062]
[1737642310749,0.0001424,102360.0,102350.0,0.35162462]
[1737642311009,0.0001424,102360.0,102350.0,0.47147191]
[1737642311172,0.0001424,102360.0,102350.0,0.47556225]
[1737642311986,0.0001424,102360.0,102350.0,0.45256225]
[1737642312233,0.0001424,102360.0,102350.0,0.35521496]
[1737642312416,0.0001424,102360.0,102350.0,0.191683]
[1737642312616,0.0001424,102360.0,102350.0,0.30186096]
[1737642314210,0.0001424,102360.0,102350.0,0.28918096]
[1737642314409,0.0001424,102360.0,102350.0,0.30186096]
[1737642316271,0.0001424,102360.0,102350.0,0.28918096]
[1737642316477,0.0001424,102360.0,102350.0,0.30186096]
[1737642318743,0.0001424,102360.0,102350.0,0.28918096]
[1737642318955,0.0001424,102360.0,102350.0,0.30186096]
[1737642319169,0.097703,102350.0,102340.0,0.22771125]
[1737642319474,0.13774246,102350.0,102340.0,0.00029925]
[1737642319690,0.31318975,102350.0,102340.0,0.00029925]
[1737642319904,0.47515606,102350.0,102340.0,0.00029925]
[1737642320451,0.46221006,102350.0,102340.0,0.00029925]
[1737642322448,0.57238802,102350.0,102340.0,0.00029925]
[1737642324623,0.59160506,102350.0,102340.0,0.00029925]
[1737642325124,0.68840506,102350.0,102340.0,0.00029925]
[1737642326843,0.42101056,102350.0,102340.0,0.00029925]
[1737642327492,0.260659,102340.0,102330.0,0.00023709]
[1737642327700,0.35800629,102340.0,102330.0,0.00023709]
[1737642331220,0.34506029,102340.0,102330.0,0.00023709]
[1737642331422,0.35800629,102340.0,102330.0,0.00023709]
[1737642331627,0.45535358,102340.0,102330.0,0.00023709]
[1737642332002,0.63588554,102340.0,102330.0,0.00023709]
[1737642333293,0.52570758,102340.0,102330.0,0.00023709]
[1737642336632,0.63588554,102340.0,102330.0,0.00023709]
[1737642337287,0.42836029,102340.0,102330.0,0.00023709]
[1737642337524,0.34506029,102340.0,102330.0,0.00023709]
[1737642338142,0.34506029,102340.0,102330.0,0.09796009]
[1737642338346,0.34506029,102340.0,102330.0,0.17486009]
[1737642338725,0.19506029,102340.0,102330.0,0.17486009]
[1737642339302,0.20800629,102340.0,102330.0,0.17486009]
[1737642342753,0.23714979,102340.0,102330.0,0.17486009]
[1737642343193,0.23729229,102340.0,102330.0,0.17486009]
[1737642344989,0.23729229,102340.0,102330.0,0.07713709]
[1737642345194,0.33452425,102340.0,102330.0,0.00023709]
[1737642345402,0.45982425,102340.0,102330.0,0.00023709]
[1737642345618,0.60982425,102340.0,102330.0,0.00023709]
[1737642345835,0.79300221,102340.0,102330.0,0.00023709]
[1737642346040,0.74300221,102340.0,102330.0,0.00023709]
[1737642346261,0.8403495,102340.0,102330.0,0.00023709]
[1737642346464,0.811206,102340.0,102330.0,0.00023709]
[1737642346667,0.320723,102330.0,102320.0,0.0004579]
[1737642346870,0.63842621,102330.0,102320.0,0.0004579]
[1737642347502,0.52824825,102330.0,102320.0,0.0004579]
[1737642347703,0.62559554,102330.0,102320.0,0.0004579]
[1737642347914,0.55259554,102330.0,102320.0,0.00017635]
[1737642349601,0.60259554,102330.0,102320.0,0.00017635]
[1737642350097,0.55259554,102330.0,102320.0,0.00017635]
[1737642350263,0.56230251,102330.0,102320.0,0.00017635]
[1737642353422,0.58231853,102330.0,102320.0,0.00017635]
[1737642354902,0.58231853,102330.0,102320.0,0.0004756]
[1737642355158,0.58246103,102330.0,102320.0,0.0004756]
[1737642357275,0.69263899,102330.0,102320.0,0.0004756]
[1737642357554,0.74263899,102330.0,102320.0,0.0004756]
[1737642358758,0.63246103,102330.0,102320.0,0.0004756]
[1737642360445,0.90024899,102330.0,102320.0,0.0004756]
[1737642360659,1.00024899,102330.0,102320.0,6e-07]
[1737642360830,1.00024899,102330.0,102300.0,4.0]
[1737642360831,0.376942,102310.0,102300.0,4.0]
[1737642361065,0.66125745,102310.0,102300.0,4.00034842]
[1737642361409,0.66125745,102310.0,102300.0,4.00030842]
[1737642362675,0.58205745,102310.0,102300.0,4.00030842]
[1737642364503,0.53205745,102310.0,102300.0,4.00030842]
[1737642364946,0.36513004,102310.0,102300.0,4.07680842]
[1737642365143,0.37807604,102310.0,102300.0,4.07680842]
[1737642365370,0.36513004,102310.0,102300.0,4.07680842]
[1737642365682,0.48488681,102310.0,102300.0,4.07680842]
[1737642367140,0.48488681,102310.0,102300.0,4.07710767]
[1737642367340,0.5823766,102310.0,102300.0,4.07710767]
[1737642367706,0.5953226,102310.0,102300.0,4.07710767]
[1737642367907,0.47219864,102310.0,102300.0,4.07710767]
[1737642368327,0.37485135,102310.0,102300.0,4.07710767]
[1737642368532,0.48502931,102310.0,102300.0,4.00060767]
[1737642369034,0.53502931,102310.0,102300.0,4.00060767]
[1737642372666,0.38779735,102310.0,102300.0,4.00060767]
[1737642372896,0.38779735,102310.0,102300.0,4.07660767]
[1737642372897,0.3677566,102310.0,102300.0,4.07660767]
[1737642373834,0.35548161,102310.0,102300.0,4.07660767]
[1737642375875,0.35548161,102310.0,102300.0,4.17435867]
[1737642376082,0.35548161,102310.0,102300.0,4.07660767]
[1737642382685,0.3459028,102310.0,102300.0,4.07660767]
[1737642390944,0.44313476,102310.0,102300.0,4.00060767]
[1737642395468,0.45608076,102310.0,102300.0,4.00060767]
[1737642395665,0.44313476,102310.0,102300.0,4.00060767]
[1737642398794,0.45608076,102310.0,102300.0,4.00060767]
[1737642399119,0.3459028,102310.0,102300.0,4.00060767]
[1737642399718,0.44313476,102310.0,102300.0,4.00060767]
[1737642399931,0.54048205,102310.0,102300.0,4.00060767]
[1737642413304,0.44313476,102310.0,102300.0,4.00060767]
[1737642413739,0.3329568,102310.0,102300.0,4.00060767]
[1737642414064,0.3459028,102310.0,102300.0,4.00060767]
[1737642414275,0.3459028,102310.0,102300.0,4.08310767]
[1737642415109,0.3459028,102310.0,102300.0,4.18085867]
[1737642415309,0.3459028,102310.0,102300.0,4.08310767]
[1737642415729,0.3459028,102310.0,102300.0,4.18085867]
[1737642417777,0.3459028,102310.0,102300.0,4.08310767]
[1737642418355,0.44202796,102310.0,102300.0,4.08310767]
[1737642418556,0.3329568,102310.0,102300.0,4.18085867]
[1737642420588,0.09748979,102310.0,102300.0,4.22635867]
[1737642421750,0.19523179,102310.0,102300.0,4.22635867]
[1737642422114,0.09748979,102310.0,102300.0,4.22635867]
[1737642425181,0.0001425,102310.0,102300.0,4.22635867]
[1737642425377,0.0001425,102310.0,102300.0,4.33653663]
[1737642426822,0.0001425,102310.0,102300.0,4.22635867]
[1737642426994,0.09748979,102310.0,102300.0,4.22635867]
[1737642427411,0.19523179,102310.0,102300.0,4.22635867]
[1737642429605,0.31835575,102310.0,102300.0,4.08310767]
[1737642429828,0.20817779,102310.0,102300.0,4.08310767]
[1737642430042,0.19523179,102310.0,102300.0,4.00060767]
[1737642430245,0.20817779,102310.0,102300.0,4.00060767]
[1737642430654,0.20817779,102310.0,102300.0,4.09835867]
[1737642430655,0.19523179,102310.0,102300.0,4.09835867]
[1737642430830,0.19523179,102310.0,102300.0,4.00060767]
[1737642431242,0.19523179,102310.0,102300.0,4.22685867]
[1737642433577,0.19523179,102310.0,102300.0,4.12910767]
[1737642433988,0.19523179,102310.0,102300.0,4.08260767]
[1737642435390,0.30552508,102310.0,102300.0,4.08260767]
[1737642435591,0.30552508,102310.0,102300.0,4.00060767]
[1737642436200,0.20817779,102310.0,102300.0,4.00060767]
[1737642438622,0.21794962,102310.0,102300.0,4.00060767]
[1737642441722,0.21794962,102310.0,102300.0,4.00035417]
[1737642443560,0.19523179,102310.0,102300.0,4.00035417]
[1737642443752,0.19523179,102310.0,102300.0,4.17440517]
[1737642443948,0.09748979,102310.0,102300.0,4.22340517]
[1737642446058,0.19523179,102310.0,102300.0,4.22340517]
[1737642446820,0.09748979,102310.0,102300.0,4.22340517]
[1737642452061,0.0001425,102310.0,102300.0,4.22340517]
[1737642452953,0.0001425,102310.0,102300.0,4.29564742]
[1737642453173,0.2928305,102320.0,102310.0,0.097742]
[1737642453373,0.39017779,102320.0,102310.0,0.097742]
[1737642455128,0.097742,102310.0,102300.0,4.12565417]
[1737642455350,0.26733154,102310.0,102300.0,4.00035417]
[1737642455541,0.19508929,102310.0,102300.0,4.00035417]
[1737642459704,0.19523179,102310.0,102300.0,4.00035417]
[1737642460474,0.20817779,102310.0,102300.0,4.00035417]
[1737642463334,0.19523179,102310.0,102300.0,4.00035417]
[1737642463692,0.20817779,102310.0,102300.0,4.00035417]
[1737642466598,0.19523179,102310.0,102300.0,4.08045417]
[1737642469512,0.19523179,102310.0,102300.0,4.17820517]
[1737642469717,0.19523179,102310.0,102300.0,4.08045417]
[1737642470158,0.20817779,102310.0,102300.0,4.08045417]
[1737642476919,0.43042004,102310.0,102300.0,4.00035417]
[1737642477149,0.64432133,102310.0,102300.0,4.00035417]
[1737642477559,0.69432133,102310.0,102300.0,4.00035417]
[1737642482465,1.4146418,102310.0,102300.0,3.85390855]
[1737642482703,1.44703835,102310.0,102300.0,2.73659769]
[1737642482909,1.44703835,102310.0,102300.0,1.7233536]
[1737642482910,2.60261618,102310.0,102300.0,1.7233536]
[1737642483110,2.60261618,102310.0,102300.0,0.87029203]
[1737642483522,2.57630021,102310.0,102300.0,0.84244203]
[1737642483739,2.32263183,102310.0,102300.0,0.84244203]
[1737642483936,2.33163183,102310.0,102300.0,0.84244203]
[1737642484142,2.33163183,102310.0,102300.0,0.78379203]
[1737642484349,2.32263183,102310.0,102300.0,0.74469203]
[1737642484558,2.33163183,102310.0,102300.0,0.74469203]
[1737642485178,2.33163183,102310.0,102300.0,0.66649203]
[1737642485377,2.33163183,102310.0,102300.0,0.64694203]
[1737642485556,2.35133581,102310.0,102300.0,0.64694203]
[1737642485777,2.35501856,102310.0,102300.0,0.64694203]
[1737642486096,1.50531856,102310.0,102300.0,0.64694203]
[1737642486765,1.50531856,102310.0,102300.0,0.56874203]
[1737642486985,1.50531856,102310.0,102300.0,0.54919203]
[1737642487761,1.59311896,102310.0,102300.0,0.54919203]
[1737642487924,1.59311896,102310.0,102300.0,0.51009203]
[1737642488130,1.59311896,102310.0,102300.0,0.45144203]
[1737642488348,1.61960651,102310.0,102300.0,0.39279203]
[1737642488553,1.61960651,102310.0,102300.0,0.37299203]
[1737642489201,1.61960651,102310.0,102300.0,0.35344203]
[1737642489382,1.61960651,102310.0,102300.0,0.31434203]
[1737642489827,1.61960651,102310.0,102300.0,0.27524203]
[1737642490374,1.61960651,102310.0,102300.0,0.21659203]
[1737642490697,1.65182651,102310.0,102300.0,0.17749203]
[1737642490878,1.54333051,102310.0,102300.0,0.17749203]
[1737642491264,1.45817296,102310.0,102300.0,0.17749203]
[1737642491958,1.38389296,102310.0,102300.0,0.17749203]
[1737642492136,1.23519296,102310.0,102300.0,0.17749203]
[1737642492478,0.76418781,102310.0,102300.0,0.17749203]
[1737642492687,0.66684052,102310.0,102300.0,0.17749203]
[1737642493118,0.81684052,102310.0,102300.0,0.17749203]
[1737642493331,0.80784052,102310.0,102300.0,0.17749203]
[1737642493739,0.79884052,102310.0,102300.0,0.17749203]
[1737642494204,0.81084052,102310.0,102300.0,0.17749203]
[1737642494449,0.90818781,102310.0,102300.0,0.17749203]
[1737642495001,0.58448781,102310.0,102300.0,0.17749203]
[1737642495624,0.48843381,102310.0,102300.0,0.17749203]
[1737642495872,0.42548781,102310.0,102300.0,0.17749203]
[1737642496054,0.57648781,102310.0,102300.0,0.17749203]
[1737642496216,0.62648781,102310.0,102300.0,0.17749203]
[1737642498546,0.57648781,102310.0,102300.0,0.17749203]
[1737642499348,1.42578956,102310.0,102300.0,0.17749203]
[1737642499551,1.44878956,102310.0,102300.0,0.17749203]
[1737642499754,1.29512456,102310.0,102300.0,0.17749203]
[1737642499963,1.09231356,102310.0,102300.0,0.17749203]
[1737642501722,1.05860456,102310.0,102300.0,0.17749203]
[1737642501923,1.01444756,102310.0,102300.0,0.17749203]
[1737642502130,0.98538156,102310.0,102300.0,0.17749203]
[1737642502330,0.87517681,102310.0,102300.0,0.17749203]
[1737642502586,0.59948781,102310.0,102300.0,0.17749203]
[1737642502759,0.76960381,102310.0,102300.0,0.17749203]
[1737642503408,0.85740421,102310.0,102300.0,0.17749203]
[1737642503760,0.83636421,102310.0,102300.0,0.17749203]
[1737642503960,0.68728821,102310.0,102300.0,0.17749203]
[1737642504366,0.83639021,102310.0,102300.0,0.17749203]
[1737642505298,0.68728821,102310.0,102300.0,0.17749203]
[1737642507228,0.68728821,102310.0,102300.0,0.25269203]
[1737642508283,0.73728821,102310.0,102300.0,0.25269203]
[1737642508680,0.67723421,102310.0,102300.0,0.25269203]
[1737642509151,0.66428821,102310.0,102300.0,0.25269203]
[1737642510383,0.71428821,102310.0,102300.0,0.25269203]
[1737642510827,0.56428821,102310.0,102300.0,0.29919203]
[1737642511027,0.71428821,102310.0,102300.0,0.29919203]
[1737642512266,0.72723421,102310.0,102300.0,0.29919203]
[1737642512470,0.71428821,102310.0,102300.0,0.29919203]
[1737642513558,0.62648781,102310.0,102300.0,0.29919203]
[1737642514180,0.63943381,102310.0,102300.0,0.29919203]
[1737642514681,0.62648781,102310.0,102300.0,0.29919203]
[1737642514879,0.58943381,102310.0,102300.0,0.29919203]
[1737642515082,0.63943381,102310.0,102300.0,0.29919203]
[1737642518893,0.62648781,102310.0,102300.0,0.29919203]
[1737642519110,0.64948781,102310.0,102300.0,0.25269203]
[1737642519324,0.75969256,102310.0,102300.0,0.17749203]
[1737642519494,0.70969256,102310.0,102300.0,0.17749203]
[1737642520953,0.59948781,102310.0,102300.0,0.17749203]
[1737642522235,0.70969256,102310.0,102300.0,0.17749203]
[1737642526787,0.59948781,102310.0,102300.0,0.07974203]
[1737642526986,0.59948781,102310.0,102300.0,0.02195556]
[1737642526987,1.63721111,102310.0,102300.0,0.02195556]
[1737642527212,1.56578508,102310.0,102280.0,0.05509925]
[1737642527556,0.47831304,102290.0,102280.0,0.00580354]
[1737642527767,0.68586508,102290.0,102280.0,0.00580354]
[1737642528605,0.6837046,102290.0,102280.0,0.00580354]
[1737642529033,0.57349985,102290.0,102280.0,0.00580354]
[1737642530099,0.66128858,102290.0,102280.0,0.00580354]
[1737642530307,0.57349985,102290.0,102280.0,0.00580354]
[1737642530900,0.60648145,102290.0,102280.0,0.00580354]
[1737642531678,0.59353545,102290.0,102280.0,0.00580354]
[1737642533041,0.68131596,102290.0,102280.0,0.00580354]
[1737642535090,0.69105199,102290.0,102280.0,0.00580354]
[1737642536781,0.80125674,102290.0,102280.0,0.00580354]
[1737642537351,0.69105199,102290.0,102280.0,0.00580354]
[1737642539879,1.42198778,102290.0,102280.0,0.00580354]
[1737642540033,1.42198778,102290.0,102280.0,5.4e-07]
[1737642540242,0.83996378,102290.0,102280.0,5.4e-07]
[1737642541202,0.4911795,102280.0,102270.0,0.08236054]
[1737642541550,0.57566933,102280.0,102270.0,0.08251141]
[1737642541766,0.55266933,102280.0,102270.0,0.08251141]
[1737642543178,0.45532204,102280.0,102270.0,0.12971141]
[1737642544188,0.19511729,102280.0,102270.0,0.12971141]
[1737642544746,0.19511729,102280.0,102270.0,0.22749141]
[1737642545768,0.30532204,102280.0,102270.0,0.12971141]
[1737642546106,0.45532204,102280.0,102270.0,0.12971141]
[1737642546319,0.44246458,102280.0,102270.0,0.12971141]
[1737642546630,0.55266933,102280.0,102270.0,0.12971141]
[1737642546796,0.44246458,102280.0,102270.0,0.12971141]
[1737642549143,0.34511729,102280.0,102270.0,0.12971141]
[1737642550298,0.34511729,102280.0,102270.0,0.22749141]
[1737642550691,0.34511729,102280.0,102270.0,0.12971141]
[1737642554441,0.28323235,102300.0,102280.0,0.20258]
[1737642554641,0.38098835,102300.0,102290.0,0.1314]
[1737642554840,0.72028195,102300.0,102290.0,0.1314]
[1737642558205,0.8304867,102300.0,102290.0,0.1314]
[1737642558405,0.8531825,102300.0,102290.0,0.1314]
[1737642558704,0.9031825,102300.0,102290.0,0.1314]
[1737642558911,0.82551415,102300.0,102290.0,0.0817]
[1737642561555,0.83846015,102300.0,102290.0,0.0817]
[1737642562116,0.82551415,102300.0,102290.0,0.0817]
[1737642562737,0.83846015,102300.0,102290.0,0.0817]
[1737642563703,0.82551415,102300.0,102290.0,0.0817]
[1737642564581,0.9132365,102300.0,102290.0,0.0817]
[1737642564790,0.012946,102290.0,102280.0,0.1269]
[1737642564914,0.46212217,102290.0,102280.0,0.1269]
[1737642565307,0.56212217,102290.0,102280.0,0.1269]
[1737642566155,0.61212217,102290.0,102280.0,0.1269]
[1737642566353,0.56212217,102290.0,102280.0,0.1269]
[1737642566553,0.61212217,102290.0,102280.0,0.1269]
[1737642566773,0.56212217,102290.0,102280.0,0.1269]
[1737642567278,0.51325904,102290.0,102280.0,0.1269]
[1737642572290,0.53309189,102290.0,102280.0,0.1269]
[1737642572668,0.53309189,102290.0,102280.0,0.133954]
[1737642572669,0.19010829,102290.0,102280.0,0.133954]
[1737642572808,0.19010829,102290.0,102280.0,0.231724]
[1737642573208,0.19010829,102290.0,102280.0,0.133954]
[1737642573654,0.19010829,102290.0,102280.0,0.231724]
[1737642573864,0.26876305,102290.0,102280.0,0.1269]
[1737642574539,0.19010829,102290.0,102280.0,0.1269]
[1737642576264,0.19010829,102290.0,102280.0,0.133954]
[1737642577710,0.09734729,102290.0,102280.0,0.34192875]
[1737642578939,0.0001425,102300.0,102280.0,0.35444875]
[1737642579185,0.00977556,102310.0,102300.0,0.007054]
[1737642579186,0.0001425,102310.0,102300.0,0.007054]
[1737642579353,0.0001425,102310.0,102300.0,0.4895145]
[1737642580132,0.08785265,102320.0,102310.0,0.33414675]
[1737642580333,0.0001425,102330.0,102320.0,0.223932]
[1737642581146,0.01182716,102330.0,102320.0,0.223932]
[1737642581326,0.01233043,102330.0,102320.0,0.34119075]
[1737642581544,0.0001425,102340.0,102330.0,0.230977]
[1737642581724,0.0001425,102340.0,102330.0,0.34123195]
[1737642583288,0.0001425,102340.0,102330.0,0.38423195]
[1737642583736,0.0001425,102340.0,102330.0,0.6444367]
[1737642585804,0.0001424,102360.0,102330.0,0.4205137]
[1737642585985,0.09748969,102360.0,102350.0,0.097703]
[1737642586176,0.09748969,102360.0,102350.0,0.181057]
[1737642586599,0.0001424,102360.0,102350.0,0.29126175]
[1737642586741,0.0001424,102360.0,102350.0,0.33626175]
[1737642586942,0.0001424,102360.0,102350.0,0.48626175]
[1737642587149,0.0001424,102360.0,102350.0,0.57926175]
[1737642587349,0.0001421,102370.0,102360.0,0.297748]
[1737642587555,0.0001421,102370.0,102360.0,0.6438575]
[1737642587779,0.00117019,102390.0,102380.0,0.104729]
[1737642587983,0.00117019,102390.0,102380.0,0.34063375]
[1737642588955,0.00117019,102390.0,102380.0,0.34068395]
[1737642590045,0.00117019,102390.0,102380.0,0.36368395]
[1737642590795,0.00117019,102390.0,102380.0,0.56368395]
[1737642592135,0.00117019,102390.0,102380.0,0.58368395]
[1737642592706,0.00117019,102390.0,102380.0,0.59333391]
[1737642594177,0.00117019,102390.0,102380.0,0.86711401]
[1737642594893,0.00131259,102390.0,102380.0,0.86711401]
[1737642595521,0.0001425,102400.0,102390.0,0.425919]
[1737642595739,0.0001425,102400.0,102390.0,0.6463285]
[1737642598045,0.0001425,102400.0,102390.0,0.67999578]
[1737642598277,0.0001425,102400.0,102390.0,0.77734307]
[1737642600120,0.0001425,102400.0,102390.0,0.54273703]
[1737642600328,0.0001425,102400.0,102390.0,0.50560375]
[1737642600528,0.0001425,102400.0,102390.0,0.938345]
[1737642600759,0.0977985,102400.0,102390.0,0.135254]
[1737642600969,0.097665,102390.0,102380.0,0.0071042]
[1737642601178,0.19501229,102390.0,102380.0,0.0071042]
[1737642601398,0.19501229,102390.0,102380.0,5.02e-05]
[1737642601601,0.51816304,102390.0,102380.0,5.02e-05]
[1737642601805,0.34501229,102390.0,102380.0,5.02e-05]
[1737642602016,0.44235958,102390.0,102380.0,5.02e-05]
[1737642602189,0.34501229,102390.0,102380.0,5.02e-05]
[1737642602828,0.45521704,102390.0,102380.0,5.02e-05]
[1737642603416,0.41542179,102390.0,102380.0,5.02e-05]
[1737642603620,0.56542179,102390.0,102380.0,5.02e-05]
[1737642604272,0.61542179,102390.0,102380.0,5.02e-05]
[1737642604476,0.45521704,102390.0,102380.0,5.02e-05]
[1737642604688,0.6726138,102390.0,102380.0,5.02e-05]
[1737642604888,0.7226138,102390.0,102380.0,5.02e-05]
[1737642606569,0.33419402,102360.0,102350.0,0.00740324]
[1737642608147,0.30524604,102360.0,102350.0,0.00740324]
[1737642609751,0.30524604,102360.0,102350.0,0.00034924]
[1737642609752,0.65458939,102360.0,102350.0,0.00034924]
[1737642609974,0.70458939,102360.0,102350.0,0.00034924]
[1737642610842,0.15,102350.0,102330.0,0.007054]
[1737642611058,0.30526504,102340.0,102330.0,0.00715248]
[1737642611267,0.30026504,102340.0,102330.0,9.848e-05]
[1737642611463,0.30026504,102340.0,102330.0,0.00715248]
[1737642612065,0.30026504,102340.0,102330.0,9.848e-05]
[1737642612209,0.30026504,102340.0,102330.0,0.00715248]
[1737642613015,0.09734729,102340.0,102330.0,0.00715248]
[1737642613219,0.30556775,102380.0,102370.0,0.007054]
[1737642613491,0.097684,102370.0,102360.0,0.0825]
[1737642613725,0.097703,102350.0,102340.0,0.083954]
[1737642613945,0.30525504,102350.0,102340.0,0.083954]
[1737642614157,0.30525504,102350.0,102340.0,0.007054]
[1737642614471,0.09734729,102350.0,102340.0,0.10486548]
[1737642614924,0.19505029,102350.0,102340.0,0.10486548]
[1737642615126,0.30525504,102350.0,102340.0,0.00715248]
[1737642615328,0.09734729,102350.0,102340.0,0.10486548]
[1737642616930,0.40330475,102360.0,102340.0,0.56932948]
[1737642617050,0.11020475,102350.0,102340.0,0.38097048]
[1737642617270,0.69605204,102360.0,102340.0,0.57638648]
[1737642617472,0.53815612,102390.0,102340.0,0.57638648]
[1737642617473,0.01967037,102390.0,102370.0,0.007054]
[1737642617724,0.19502529,102380.0,102370.0,0.007054]
[1737642617931,0.19502529,102380.0,102360.0,0.346317]
[1737642618091,0.11020475,102370.0,102340.0,0.42717348]
[1737642618293,0.29270629,102380.0,102340.0,0.00715248]
[1737642618294,0.097703,102350.0,102340.0,0.00715248]
[1737642618490,0.19505029,102350.0,102340.0,0.10486548]
[1737642618734,0.390761,102370.0,102350.0,0.186655]
[1737642618933,0.443071,102370.0,102360.0,0.007054]
[1737642619263,0.443071,102370.0,102360.0,0.104748]
[1737642619264,0.39041829,102370.0,102360.0,0.104748]
[1737642619390,0.09734729,102370.0,102360.0,0.104748]
[1737642619799,0.19503129,102370.0,102360.0,0.104748]
[1737642620008,0.19503129,102370.0,102360.0,0.007054]
[1737642620221,0.09734729,102370.0,102360.0,0.104748]
[1737642620416,0.19503129,102370.0,102360.0,0.007054]
[1737642621462,0.19503129,102370.0,102360.0,0.104748]
[1737642621672,0.41035937,102390.0,102370.0,0.104738]
[1737642621858,0.41035937,102390.0,102370.0,0.300098]
[1737642621859,0.09734729,102380.0,102370.0,0.300098]
[1737642622068,0.0001423,102390.0,102380.0,0.207429]
[1737642622288,0.0001423,102390.0,102380.0,0.63048104]
[1737642622485,0.0001423,102390.0,102380.0,0.74068579]
[1737642622693,2.1e-07,102400.0,102390.0,0.197719]
[1737642622893,0.0002024,102410.0,102400.0,0.42371]
[1737642623133,0.0001423,102420.0,102410.0,0.1977]
[1737642623289,0.0001423,102420.0,102410.0,0.65569679]
[1737642623705,0.0001423,102420.0,102410.0,0.74993409]
[1737642623896,0.01827896,102430.0,102420.0,0.273291]
[1737642624157,0.01827896,102430.0,102420.0,0.60965813]
[1737642624294,0.00825373,102440.0,102430.0,0.200054]
[1737642624496,0.00825373,102440.0,102430.0,0.66550977]
[1737642624729,0.001,102440.0,102430.0,0.66550977]
[1737642624938,0.001,102440.0,102430.0,0.71550977]
[1737642625527,0.001,102440.0,102430.0,0.68527509]
[1737642625956,0.001,102440.0,102430.0,0.5379278]
[1737642626158,0.09834729,102440.0,102430.0,0.180281]
[1737642626452,0.09834729,102440.0,102420.0,0.63128]
[1737642626453,0.097627,102430.0,102420.0,0.143129]
[1737642626769,0.097627,102430.0,102420.0,0.007054]
[1737642626770,0.29261229,102430.0,102420.0,0.007054]
[1737642626970,0.19497429,102430.0,102420.0,0.104691]
[1737642627611,0.09734729,102430.0,102420.0,0.104691]
[1737642627941,0.001,102440.0,102430.0,0.104681]
[1737642628152,0.09834729,102440.0,102430.0,0.104681]
[1737642628359,0.001,102440.0,102430.0,0.104681]
[1737642628810,0.001,102440.0,102430.0,0.10461342]
[1737642630277,0.19596529,102440.0,102430.0,0.00698642]
[1737642630568,0.19596529,102440.0,102430.0,0.10461342]
[1737642630876,0.09834729,102440.0,102430.0,0.10461342]
[1737642631107,0.19596529,102440.0,102430.0,0.10461342]
[1737642631327,0.39120729,102440.0,102420.0,0.488148]
[1737642631497,0.37459626,102440.0,102430.0,0.00698642]
[1737642631700,0.09834729,102440.0,102430.0,0.00698642]
[1737642631898,0.19596529,102440.0,102430.0,0.10461342]
[1737642632142,0.39120329,102440.0,102430.0,0.00698642]
[1737642632333,0.19610769,102440.0,102430.0,0.10461342]
[1737642632544,0.09848969,102440.0,102430.0,0.10461342]
[1737642632744,0.19610769,102440.0,102430.0,0.10461342]
[1737642632922,0.39134969,102440.0,102420.0,0.488154]
[1737642633256,0.19610769,102440.0,102430.0,0.10461342]
[1737642633701,0.19610769,102440.0,102430.0,0.00698642]
[1737642633826,0.19610769,102440.0,102430.0,0.10461342]
[1737642634013,0.19610769,102440.0,102430.0,0.00698642]
[1737642634243,0.58660869,102440.0,102420.0,0.49514442]
[1737642634443,0.09734729,102430.0,102420.0,0.29987942]
[1737642634663,0.2883104,102440.0,102430.0,3.90265271]
[1737642634865,0.38565769,102440.0,102430.0,3.90265271]
[1737642635611,0.53565769,102440.0,102430.0,3.90265271]
[1737642635807,0.57202749,102440.0,102430.0,3.90265271]
[1737642635988,0.78667429,102440.0,102430.0,3.90265271]
[1737642636547,0.53565769,102440.0,102430.0,3.90265271]
[1737642636747,0.19497329,102440.0,102430.0,3.90963913]
[1737642637102,0.19497329,102440.0,102430.0,4.00726613]
[1737642637308,0.19497329,102440.0,102430.0,3.90963913]
[1737642637730,0.19497329,102440.0,102430.0,4.00726613]
[1737642638139,0.09734729,102440.0,102430.0,4.00726613]
[1737642638349,0.1233213,102450.0,102440.0,0.00698642]
[1737642638584,0.22066859,102450.0,102440.0,0.00698642]
[1737642639198,0.097618,102440.0,102430.0,3.90963913]
[1737642639365,0.19496529,102440.0,102430.0,3.90265271]
[1737642639573,0.34546924,102440.0,102430.0,3.90265271]
[1737642640115,0.19546924,102440.0,102430.0,3.90265271]
[1737642640710,0.19546924,102440.0,102430.0,4.00726613]
[1737642641354,0.19546924,102440.0,102430.0,3.90963913]
[1737642643182,0.19546924,102440.0,102430.0,4.00726613]
[1737642643598,0.19546924,102440.0,102430.0,3.90963913]
[1737642644094,0.09785124,102440.0,102430.0,4.00756496]
[1737642644307,0.00050395,102440.0,102430.0,4.29651176]
[1737642644517,0.00050395,102440.0,102430.0,4.31951176]
[1737642644703,0.00050395,102440.0,102430.0,4.29651176]
[1737642644951,0.00064625,102440.0,102430.0,4.13186496]
[1737642645130,0.19561154,102440.0,102430.0,4.13186496]
[1737642645333,0.19561154,102440.0,102430.0,4.02725154]
[1737642645537,0.19561154,102440.0,102430.0,3.90993796]
[1737642645947,0.09799354,102440.0,102430.0,4.00756496]
[1737642646902,0.00064625,102440.0,102430.0,4.00756496]
[1737642647147,0.00064625,102440.0,102430.0,4.32221176]
[1737642647484,0.00064625,102440.0,102430.0,4.39861176]
[1737642647665,0.00064625,102440.0,102430.0,4.23396496]
[1737642647878,0.0257043,102450.0,102440.0,0.27760442]
[1737642648083,0.0001425,102480.0,102470.0,0.18288642]
[1737642648290,0.0001425,102480.0,102470.0,0.60018951]
[1737642649120,5e-07,102480.0,102470.0,0.75018951]
[1737642649326,5e-07,102480.0,102470.0,0.24519542]
[1737642650201,5e-07,102480.0,102470.0,0.23047542]
[1737642650400,5e-07,102480.0,102470.0,0.00698642]
[1737642650401,0.19492779,102480.0,102470.0,0.00698642]
[1737642650588,0.0976,102460.0,102450.0,0.097608]
[1737642650714,0.0976,102460.0,102440.0,0.52988048]
[1737642650921,0.39010379,102480.0,102460.0,0.00698642]
[1737642651142,0.29251679,102480.0,102460.0,0.29975842]
[1737642651346,0.39013229,102470.0,102460.0,0.00698642]
[1737642651665,0.097608,102450.0,102440.0,0.0070849]
[1737642652021,0.585627,102460.0,102450.0,0.00698642]
[1737642652022,0.19494629,102460.0,102450.0,0.00698642]
[1737642652226,0.19494629,102460.0,102450.0,0.10459442]
[1737642652428,0.3451725,102480.0,102460.0,0.00698642]
[1737642652573,0.09734729,102470.0,102460.0,0.10457942]
[1737642652780,0.3451695,102480.0,102470.0,0.00698642]
[1737642653105,0.097589,102470.0,102460.0,0.00698642]
[1737642653349,0.097589,102470.0,102450.0,0.292805]
[1737642653350,0.097599,102460.0,102450.0,0.292805]
[1737642653485,0.09734729,102460.0,102440.0,0.29292848]
[1737642653688,0.19495529,102450.0,102440.0,0.0070849]
[1737642654110,0.24228913,102450.0,102440.0,0.0070849]
[1737642654328,0.32508184,102450.0,102440.0,0.0070849]
[1737642654532,0.24228913,102450.0,102440.0,0.1047029]